bitfinex/quotes_SOLUSD_20251226
["timestamp","ask_amount","ask_price","bid_price","bid_amount"]
[1766716336446,0.68,124.08,124.03,5.80445228]
[1766716336756,5.80445228,124.06,124.01,13.86810646]
[1766716336963,5.80445228,124.04,124.01,14.72]
[1766716337167,5.80445228,124.03,124.01,14.72]
[1766716337459,0.68,124.02,123.97,28.59083231]
[1766716337760,5.80445228,124.02,123.98,5.80445228]
[1766716337950,5.80445228,124.01,123.97,22.78638003]
[1766716338149,5.80445228,124.02,123.97,39.02850527]
[1766716338354,5.80445228,124.02,123.97,28.59083231]
[1766716338844,5.80445228,124.01,123.97,22.78638003]
[1766716339260,6.48445228,124.01,123.97,33.22404839]
[1766716339466,28.2121554,124.06,123.97,33.22404839]
[1766716339467,8.06061583,124.06,123.97,33.22404839]
[1766716339671,6.48445228,124.02,123.97,33.22404839]
[1766716339879,6.48445228,124.01,123.97,25.15767296]
[1766716340280,5.80445228,124.0,123.97,25.15767296]
[1766716340451,5.80445228,123.99,123.97,14.72]
[1766716340765,0.68,124.01,123.97,14.72]
[1766716340966,5.80445228,124.0,123.97,14.72]
[1766716341172,0.68,124.05,123.97,14.72]
[1766716341469,6.48445228,123.98,123.93,13.87305365]
[1766716342067,6.48445228,123.97,123.93,8.06860137]
[1766716342270,5.80445228,123.96,123.92,28.59406182]
[1766716342450,6.48445228,123.93,123.88,5.80445228]
[1766716342652,8.06588616,123.98,123.87,8.07233416]
[1766716342653,5.80445228,123.9,123.87,14.72]
[1766716342838,0.68,123.91,123.87,14.72]
[1766716343039,0.68,123.97,123.87,33.23049463]
[1766716343246,6.48445228,123.94,123.89,5.80445228]
[1766716343445,0.68,123.99,123.91,8.07037365]
[1766716343859,6.48445228,123.98,123.91,22.79037365]
[1766716344058,6.48445228,123.98,123.94,10.43767296]
[1766716344254,6.48445228,123.98,123.94,16.24212524]
[1766716344444,6.48445228,123.96,123.91,22.79037365]
[1766716344646,6.48445228,123.95,123.92,10.43767296]
[1766716344963,6.48445228,123.95,123.91,22.79037365]
[1766716344964,5.80445228,123.94,123.91,14.72]
[1766716345464,0.68,123.96,123.92,8.0697224]
[1766716345642,5.80445228,123.96,123.92,13.87417468]
[1766716345840,6.48445228,123.96,123.91,13.874693]
[1766716346059,10.43767296,124.02,123.91,13.87443576]
[1766716346257,0.68,123.98,123.93,5.80445228]
[1766716346544,6.48445228,123.96,123.91,8.06998348]
[1766716346752,6.48445228,123.96,123.91,13.87443576]
[1766716346950,0.68,123.96,123.91,13.87443576]
[1766716347142,0.68,123.96,123.92,5.80445228]
[1766716347567,5.80445228,123.96,123.91,13.87443576]
[1766716347766,6.48445228,123.95,123.91,8.06998348]
[1766716348075,10.09266728,123.93,123.9,14.72]
[1766716348447,10.09266728,123.93,123.89,18.50920023]
[1766716348643,0.68,123.93,123.89,10.43767296]
[1766716348960,10.09266728,123.92,123.88,8.07223653]
[1766716349164,10.09266728,123.92,123.88,17.48490381]
[1766716349486,10.09266728,123.92,123.89,8.07166069]
[1766716349643,10.09266728,123.94,123.89,17.48432797]
[1766716349848,0.68,123.94,123.89,17.48432797]
[1766716350152,0.68,123.92,123.89,8.07166069]
[1766716350467,28.23205738,123.98,123.88,37.66561176]
[1766716350677,9.41266728,123.94,123.89,9.41266728]
[1766716350865,0.68,123.95,123.91,9.41266728]
[1766716351050,0.68,123.95,123.91,10.43767296]
[1766716351250,9.41266728,123.93,123.88,28.25294448]
[1766716351552,9.41266728,123.9,123.87,14.72]
[1766716351758,10.09266728,123.9,123.87,14.72]
[1766716352261,9.41266728,123.92,123.88,17.48493205]
[1766716352464,9.41266728,123.9,123.87,14.72]
[1766716352778,10.09266728,123.9,123.86,17.48618804]
[1766716353146,0.68,123.9,123.87,8.07284725]
[1766716353560,10.09266728,123.9,123.85,18.51161314]
[1766716353767,0.68,123.9,123.85,18.51161314]
[1766716353984,20.17196163,123.94,123.85,10.43767296]
[1766716353985,0.68,123.88,123.85,10.43767296]
[1766716354366,0.68,123.92,123.85,27.92410478]
[1766716354567,9.41266728,123.89,123.85,10.43767296]
[1766716354781,9.41266728,123.89,123.85,27.92432417]
[1766716355079,9.41266728,123.89,123.85,18.51165689]
[1766716355284,9.41266728,123.89,123.85,27.92432417]
[1766716355583,10.09266728,123.9,123.85,27.92432417]
[1766716355979,9.41266728,123.9,123.85,27.92432417]
[1766716356280,10.09266728,123.9,123.85,27.92432417]
[1766716356483,0.68,123.9,123.86,9.41266728]
[1766716356696,9.41266728,123.89,123.85,38.6973654]
[1766716356899,10.09266728,123.89,123.85,18.51165689]
[1766716357065,10.09266728,123.89,123.85,27.92432417]
[1766716358287,0.68,123.89,123.85,27.92432417]
[1766716358599,10.09266728,123.89,123.85,27.92432417]
[1766716358778,24.2257843,124.03,123.85,18.51165689]
[1766716358977,8.71852091,124.13,123.85,18.51165689]
[1766716358978,36.60302072,124.22,124.02,9.41266728]
[1766716359302,9.41266728,124.17,124.12,9.41266728]
[1766716359465,14.72,124.27,124.14,9.41266728]
[1766716359672,14.72,124.27,124.13,14.72]
[1766716359888,9.41266728,124.17,124.13,22.77579424]
[1766716360080,11.55983115,124.2,124.15,9.41266728]
[1766716360393,11.55983115,124.2,124.11,22.77682463]
[1766716360394,11.55983115,124.2,124.14,9.41266728]
[1766716360893,0.68,124.19,124.13,9.41266728]
[1766716361284,0.68,124.19,124.12,9.41266728]
[1766716361689,0.68,124.19,124.09,8.05846263]
[1766716361991,0.68,124.19,124.08,25.15767296]
[1766716361992,0.66,124.17,124.11,9.41266728]
[1766716362295,28.18489289,124.18,124.11,9.41266728]
[1766716362682,37.59756017,124.18,124.1,9.41266728]
[1766716363295,9.41266728,124.11,124.05,22.78071469]
[1766716363979,9.41266728,124.11,124.05,33.21838765]
[1766716364191,28.19170358,124.15,124.04,4.20853258]
[1766716364393,10.07266728,124.09,124.04,12.27022672]
[1766716364570,10.07266728,124.09,124.05,8.06126254]
[1766716364920,0.66,124.09,124.05,8.06126254]
[1766716365979,0.66,124.09,124.04,8.06191551]
[1766716366179,10.07266728,124.09,124.04,8.06191551]
[1766716366382,9.41266728,124.08,124.04,8.06191551]
[1766716367678,10.07266728,124.09,124.04,8.06191551]
[1766716367879,0.66,124.12,124.06,0.68]
[1766716368085,10.07266728,124.12,124.07,10.43767296]
[1766716368275,9.41266728,124.11,124.07,10.43767296]
[1766716368996,9.41266728,124.11,124.08,8.05931656]
[1766716369181,10.07266728,124.12,124.08,8.05931656]
[1766716369682,9.41266728,124.12,124.08,8.05931656]
[1766716370299,0.66,124.13,124.08,8.05931656]
[1766716370481,10.07266728,124.11,124.06,19.85034024]
[1766716370882,10.07266728,124.11,124.06,10.43767296]
[1766716371078,10.07266728,124.11,124.07,8.0597016]
[1766716371280,9.41266728,124.1,124.07,8.0597016]
[1766716371478,9.41266728,124.1,124.06,10.43767296]
[1766716371676,10.07266728,124.1,124.06,18.49825576]
[1766716371891,9.41266728,124.11,124.06,18.49825576]
[1766716372092,10.07266728,124.11,124.06,18.49825576]
[1766716372600,0.66,124.11,124.06,18.49825576]
[1766716372798,10.07266728,124.11,124.06,18.49825576]
[1766716373172,0.66,124.11,124.06,27.91092304]
[1766716373595,9.41266728,124.12,124.06,48.74246261]
[1766716373798,0.66,124.13,124.08,10.09266728]
[1766716373973,10.07266728,124.13,124.09,10.43767296]
[1766716374172,9.41266728,124.12,124.09,10.43767296]
[1766716374373,10.07266728,124.12,124.09,10.43767296]
[1766716374573,0.66,124.12,124.09,10.43767296]
[1766716374875,10.07266728,124.12,124.09,10.43767296]
[1766716375276,10.07266728,124.12,124.08,8.05905587]
[1766716375478,9.65171481,124.12,124.08,8.05905587]
[1766716375874,0.23904753,124.12,124.08,8.05905587]
[1766716376081,9.65171481,124.12,124.08,8.05905587]
[1766716376977,64.37081696,124.2,124.09,8.05828555]
[1766716376978,14.7,124.2,124.09,8.05828555]
[1766716377217,9.41266728,124.14,124.1,8.76750532]
[1766716378602,10.07266728,124.15,124.1,8.76750532]
[1766716378902,9.41266728,124.13,124.08,8.05931442]
[1766716379101,10.07266728,124.12,124.08,8.05931442]
[1766716380103,28.18721073,124.17,124.08,8.05931442]
[1766716380303,9.41266728,124.12,124.08,8.05931442]
[1766716380678,9.41266728,124.2,124.07,25.84767296]
[1766716380679,163.8,124.28,124.14,10.43767296]
[1766716380885,0.1,124.28,124.15,10.12266728]
[1766716381182,9.41266728,124.18,124.14,11.14767296]
[1766716381381,9.41266728,124.17,124.12,0.71]
[1766716381595,9.41266728,124.18,124.12,9.41266728]
[1766716381801,9.41266728,124.2,124.14,10.12266728]
[1766716381999,9.41266728,124.2,124.15,10.12266728]
[1766716382305,0.66,124.2,124.13,0.71]
[1766716382476,9.41266728,124.19,124.15,8.05477245]
[1766716382683,0.66,124.2,124.15,18.17743973]
[1766716382912,0.66,124.22,124.17,10.12266728]
[1766716383093,0.66,124.22,124.17,0.71]
[1766716383290,9.41266728,124.21,124.17,0.71]
[1766716383701,9.41266728,124.22,124.17,9.41266728]
[1766716383900,50.77029572,124.28,124.15,18.49244541]
[1766716383901,0.1,124.28,124.2,9.41266728]
[1766716384107,0.1,124.28,124.22,9.41266728]
[1766716384391,0.1,124.28,124.25,8.04828973]
[1766716384587,1e-08,124.28,124.27,0.71]
[1766716384996,9.41266728,124.32,124.26,9.41266728]
[1766716385183,0.66,124.33,124.27,0.71]
[1766716385386,8.70165851,124.36,124.28,9.41266728]
[1766716385586,8.70165851,124.36,124.26,14.7]
[1766716385587,8.04165851,124.36,124.29,9.62266728]
[1766716385784,9.41266728,124.34,124.29,9.62266728]
[1766716385986,9.41266728,124.34,124.28,9.12266728]
[1766716386393,0.66,124.43,124.32,10.43767296]
[1766716386613,0.76,124.37,124.32,9.41266728]
[1766716386914,9.41266728,124.36,124.31,9.41266728]
[1766716387208,0.76,124.37,124.3,8.04505229]
[1766716387515,9.41266728,124.35,124.31,10.43767296]
[1766716387890,9.41266728,124.32,124.29,10.43767296]
[1766716388192,9.41266728,124.32,124.28,8.04625118]
[1766716388399,9.41266728,124.32,124.27,28.60721345]
[1766716388797,10.07266728,124.33,124.27,28.60721345]
[1766716388993,9.41266728,124.3,124.27,10.43767296]
[1766716389203,0.66,124.34,124.28,0.71]
[1766716389395,9.41266728,124.33,124.28,10.12266728]
[1766716389596,0.1,124.37,124.31,0.71]
[1766716389801,9.41266728,124.35,124.31,0.71]
[1766716390011,0.66,124.36,124.32,9.41266728]
[1766716390204,9.51266728,124.37,124.32,10.12266728]
[1766716390409,0.1,124.37,124.32,10.12266728]
[1766716390798,9.41266728,124.36,124.32,0.71]
[1766716391018,0.66,124.36,124.3,25.13767296]
[1766716391314,9.41266728,124.34,124.3,25.13767296]
[1766716391495,0.66,124.36,124.3,33.89271274]
[1766716391691,9.41266728,124.34,124.3,33.89271274]
[1766716392008,9.41266728,124.34,124.3,25.84767296]
[1766716392215,9.51266728,124.37,124.32,8.75359111]
[1766716392917,0.1,124.37,124.32,8.75359111]
[1766716393119,9.51266728,124.37,124.32,8.75359111]
[1766716393291,0.76,124.37,124.32,0.71]
[1766716393495,25.11767296,124.44,124.34,10.12266728]
[1766716393496,0.66,124.4,124.34,10.12266728]
[1766716393707,9.41266728,124.39,124.34,0.71]
[1766716394704,9.41266728,124.38,124.34,0.71]
[1766716394900,9.41266728,124.37,124.34,0.71]
[1766716395605,28.13731006,124.39,124.34,0.71]
[1766716395799,9.41266728,124.36,124.34,0.71]
[1766716395992,9.41266728,124.35,124.28,9.41266728]
[1766716396191,9.41266728,124.38,124.28,9.41266728]
[1766716396192,9.41266728,124.34,124.29,14.68]
[1766716396392,9.41266728,124.33,124.29,14.68]
[1766716396815,9.41266728,124.31,124.25,8.04779879]
[1766716397014,9.41266728,124.28,124.24,14.68]
[1766716397216,9.41266728,124.27,124.24,14.68]
[1766716397514,38.5795078,124.37,124.24,24.09266728]
[1766716397703,9.41266728,124.3,124.25,9.41266728]
[1766716398323,9.41266728,124.3,124.24,24.09266728]
[1766716398618,9.41266728,124.32,124.27,9.41266728]
[1766716398788,9.41266728,124.32,124.26,19.85034024]
[1766716398992,9.41266728,124.32,124.27,8.04699444]
[1766716399321,8.0410571,124.37,124.27,28.16448055]
[1766716399500,9.41266728,124.34,124.29,9.41266728]
[1766716399710,9.41266728,124.32,124.27,17.45966172]
[1766716399908,9.41266728,124.33,124.27,17.45966172]
[1766716400238,9.41266728,124.29,124.26,14.68]
[1766716400530,28.1423677,124.37,124.23,32.14177276]
[1766716400739,9.41266728,124.29,124.24,10.43767296]
[1766716400915,9.41266728,124.28,124.23,32.14177276]
[1766716401104,9.41266728,124.27,124.23,33.16677844]
[1766716401303,9.41266728,124.27,124.23,14.68]
[1766716401603,9.41266728,124.26,124.23,14.68]
[1766716402017,28.15768302,124.3,124.23,14.68]
[1766716402324,9.41266728,124.27,124.23,14.68]
[1766716402820,9.41266728,124.26,124.23,14.68]
[1766716403121,9.41266728,124.24,124.19,14.68]
[1766716403338,9.41266728,124.22,124.19,14.68]
[1766716403727,9.41266728,124.21,124.19,14.68]
[1766716404025,9.41266728,124.2,124.14,8.05488274]
[1766716404244,9.41266728,124.2,124.12,34.82037782]
[1766716404245,9.41266728,124.15,124.12,14.68]
[1766716404530,9.41266728,124.17,124.12,9.41266728]
[1766716404830,9.41266728,124.16,124.12,10.43767296]
[1766716405124,9.41266728,124.16,124.11,17.46952381]
[1766716405321,9.41266728,124.16,124.12,10.43767296]
[1766716405625,9.41266728,124.19,124.14,9.41266728]
[1766716406013,9.41266728,124.18,124.13,9.41266728]
[1766716406194,9.41266728,124.19,124.14,19.85034024]
[1766716406624,8.05023345,124.22,124.14,10.43767296]
[1766716406830,9.41266728,124.18,124.14,10.43767296]
[1766716407118,9.41266728,124.18,124.14,27.90515206]
[1766716407299,8.05023345,124.22,124.14,27.90515206]
[1766716407300,9.41266728,124.19,124.14,27.90515206]
[1766716407502,9.41266728,124.18,124.14,27.90515206]
[1766716407902,9.41266728,124.18,124.14,10.43767296]
[1766716408122,8.05023345,124.22,124.14,10.43767296]
[1766716408441,9.41266728,124.16,124.12,27.9069701]
[1766716408636,28.17581709,124.22,124.12,27.9069701]
[1766716408944,9.41266728,124.16,124.12,27.9069701]
[1766716409232,9.41266728,124.16,124.11,8.05735375]
[1766716409532,8.05286612,124.18,124.11,8.05735375]
[1766716409533,9.41266728,124.15,124.11,18.49502671]
[1766716410010,5.77245949,124.15,124.11,18.49502671]
[1766716410401,8.05286612,124.18,124.11,18.49502671]
[1766716410402,5.77245949,124.14,124.11,10.43767296]
[1766716410822,5.77245949,124.29,124.15,10.43767296]
[1766716411120,5.77245949,124.29,124.19,5.77245949]
[1766716411295,5.77245949,124.24,124.19,13.82417986]
[1766716411493,5.77245949,124.22,124.17,5.77245949]
[1766716411708,5.77245949,124.22,124.17,13.82545589]
[1766716411908,5.77245949,124.22,124.19,8.05199487]
[1766716412125,5.77245949,124.23,124.18,5.77245949]
[1766716412310,8.04769365,124.26,124.17,20.13360539]
[1766716412503,5.77245949,124.23,124.18,5.77245949]
[1766716412823,5.77245949,124.23,124.18,8.05264179]
[1766716413024,5.77245949,124.23,124.19,8.05196912]
[1766716413506,28.16336297,124.28,124.19,8.05196912]
[1766716413823,5.77245949,124.23,124.19,8.05196912]
[1766716414521,28.16336297,124.28,124.17,20.13360539]
[1766716414522,5.77245949,124.22,124.17,13.82575801]
[1766716414825,5.77245949,124.23,124.18,13.82503828]
[1766716414995,42.84336297,124.28,124.17,8.05326747]
[1766716415198,5.77245949,124.21,124.17,13.82572696]
[1766716416226,5.77245949,124.21,124.17,8.05326747]
[1766716416730,5.77245949,124.21,124.17,13.82572696]
[1766716416922,5.77245949,124.21,124.16,13.82643208]
[1766716417112,8.0497993,124.23,124.16,13.82643208]
[1766716417113,5.77245949,124.2,124.16,13.82643208]
[1766716418515,5.77245949,124.23,124.18,5.77245949]
[1766716418715,5.77245949,124.2,124.15,13.8271468]
[1766716419432,5.77245949,124.2,124.05,39.62895818]
[1766716419433,5.77245949,124.16,124.05,39.62895818]
[1766716419600,5.77245949,124.2,124.05,39.62895818]
[1766716419601,5.77245949,124.14,124.09,5.77245949]
[1766716419796,5.77245949,124.14,124.1,10.43767296]
[1766716420199,5.77245949,124.2,124.1,5.77245949]
[1766716420430,5.77245949,124.16,124.12,5.77245949]
[1766716420819,5.77245949,124.16,124.11,28.20078961]
[1766716421030,5.77245949,124.16,124.11,33.9732491]
[1766716422727,5.77245949,124.16,124.11,8.05736846]
[1766716422914,5.77245949,124.16,124.11,13.82982795]
[1766716423111,5.77245949,124.17,124.13,5.77245949]
[1766716423727,14.68,124.21,124.13,5.77245949]
[1766716423728,20.12301711,124.24,124.15,5.77245949]
[1766716423916,5.77245949,124.19,124.15,5.77245949]
[1766716424431,5.77245949,124.19,124.15,8.05477245]
[1766716424810,5.77245949,124.18,124.15,8.05477245]
[1766716425020,5.77245949,124.19,124.15,8.05477245]
[1766716426513,5.77245949,124.19,124.14,5.77245949]
[1766716426514,5.77245949,124.18,124.14,13.82779008]
[1766716426831,5.77245949,124.17,124.14,8.05533059]
[1766716427135,5.77245949,124.18,124.14,8.05533059]
[1766716429137,8.05023345,124.22,124.15,5.77245949]
[1766716429347,8.05023345,124.22,124.14,13.82779008]
[1766716429639,5.77245949,124.18,124.13,18.49347339]
[1766716429945,5.77245949,124.18,124.13,24.26593288]
[1766716430539,5.77245949,124.17,124.13,13.82825992]
[1766716431943,54.92366026,124.25,124.14,5.77245949]
[1766716432127,5.77245949,124.18,124.14,5.77245949]
[1766716432321,54.92366026,124.25,124.13,8.055892]
[1766716432520,50.55264864,124.3,124.17,5.77245949]
[1766716432521,8.04893754,124.24,124.17,5.77245949]
[1766716432728,5.77245949,124.2,124.16,5.77245949]
[1766716433144,5.77245949,124.21,124.16,5.77245949]
[1766716433325,8.04893754,124.24,124.16,5.77245949]
[1766716433523,5.77245949,124.21,124.14,10.43767296]
[1766716433724,5.77245949,124.22,124.17,5.77245949]
[1766716434345,5.77245949,124.23,124.19,5.77245949]
[1766716435340,5.77245949,124.23,124.18,13.82488817]
[1766716435649,28.17130949,124.24,124.13,9.95621483]
[1766716435947,8.04896564,124.24,124.17,8.05346895]
[1766716436149,5.77245949,124.22,124.18,13.82487314]
[1766716436352,8.04853829,124.25,124.18,13.82487314]
[1766716436651,5.77245949,124.22,124.18,13.82487314]
[1766716436826,5.77245949,124.24,124.19,13.82453554]
[1766716437021,5.77245949,124.24,124.19,5.77245949]
[1766716437250,14.68,124.26,124.16,5.77245949]
[1766716437455,5.77245949,124.21,124.16,5.77245949]
[1766716437672,5.77245949,124.22,124.17,5.77245949]
[1766716437828,5.77245949,124.22,124.18,5.77245949]
[1766716438029,5.77245949,124.22,124.17,5.77245949]
[1766716439155,5.77245949,124.22,124.17,8.05304688]
[1766716439356,5.77245949,124.22,124.17,13.82550637]
[1766716439846,5.77245949,124.22,124.17,8.05304688]
[1766716440227,5.77245949,124.21,124.16,13.82635143]
[1766716440455,5.77245949,124.21,124.16,5.77245949]
[1766716440766,5.77245949,124.21,124.13,24.65621483]
[1766716440767,5.77245949,124.18,124.14,8.05518191]
[1766716441066,5.77245949,124.19,124.14,5.77245949]
[1766716441357,28.17355397,124.23,124.15,8.05439729]
[1766716441557,5.77245949,124.2,124.15,8.05439729]
[1766716441927,5.77245949,124.19,124.15,8.05439729]
[1766716442133,5.77245949,124.18,124.15,8.05439729]
[1766716442470,5.77245949,124.23,124.17,5.77245949]
[1766716442632,8.04758413,124.27,124.19,5.77245949]
[1766716442960,5.77245949,124.24,124.18,16.21013245]
[1766716443254,8.04758413,124.27,124.19,13.8246376]
[1766716443255,5.77245949,124.25,124.19,13.8246376]
[1766716443985,5.77245949,124.24,124.18,8.05260728]
[1766716444146,5.77245949,124.21,124.17,8.05331605]
[1766716444343,38.60259977,124.27,124.16,25.90744066]
[1766716444344,0.7,124.22,124.18,14.06516928]
[1766716444539,0.7,124.24,124.19,6.01245949]
[1766716444850,0.7,124.23,124.19,0.24]
[1766716445066,0.7,124.22,124.18,28.18477614]
[1766716445571,0.7,124.22,124.18,28.42477614]
[1766716445770,0.7,124.22,124.18,34.19723563]
[1766716445958,0.7,124.22,124.18,8.05270979]
[1766716446166,0.7,124.21,124.18,8.05270979]
[1766716446549,0.7,124.2,124.15,0.24]
[1766716446747,0.7,124.19,124.16,8.05368154]
[1766716446962,0.7,124.19,124.15,6.01245949]
[1766716447169,0.7,124.19,124.16,8.05412371]
[1766716447675,0.7,124.18,124.15,8.05457123]
[1766716447871,10.43767296,124.26,124.13,14.7]
[1766716447872,0.7,124.16,124.13,14.7]
[1766716448170,6.47245949,124.16,124.13,22.75565087]
[1766716448543,0.7,124.14,124.11,8.05712123]
[1766716448747,6.47245949,124.14,124.11,8.05712123]
[1766716448971,0.7,124.14,124.11,8.05712123]
[1766716449173,0.7,124.14,124.1,6.01245949]
[1766716449472,0.7,124.17,124.12,16.21013245]
[1766716449659,0.7,124.17,124.13,0.24]
[1766716449854,0.7,124.16,124.12,10.43767296]
[1766716450071,6.47245949,124.16,124.12,10.43767296]
[1766716450276,0.7,124.16,124.12,10.43767296]
[1766716451073,0.7,124.16,124.13,8.05607024]
[1766716452273,0.7,124.16,124.13,28.19624586]
[1766716452665,0.7,124.16,124.12,18.49416472]
[1766716452666,6.47245949,124.16,124.12,18.49416472]
[1766716452865,0.7,124.15,124.12,10.43767296]
[1766716453069,0.7,124.14,124.11,8.0569179]
[1766716453673,20.12658662,124.22,124.11,33.97279854]
[1766716453874,20.12658662,124.22,124.12,5.77245949]
[1766716453875,0.68,124.16,124.12,5.77245949]
[1766716454177,0.68,124.15,124.11,8.0569179]
[1766716454384,0.68,124.14,124.11,8.0569179]
[1766716454578,0.68,124.14,124.1,8.05786174]
[1766716454756,0.68,124.14,124.1,13.83032123]
[1766716455456,0.68,124.14,124.1,8.05786174]
[1766716455891,0.68,124.13,124.1,8.05786174]
[1766716456260,0.68,124.13,124.1,11.83032123]
[1766716456777,0.68,124.13,124.1,6.05786174]
[1766716457478,0.68,124.11,124.07,26.16160786]
[1766716457681,0.68,124.13,124.09,13.83101286]
[1766716457861,0.68,124.13,124.09,33.9776806]
[1766716458064,0.68,124.13,124.09,28.20522111]
[1766716458272,0.68,124.13,124.1,5.77245949]
[1766716459084,8.05236931,124.19,124.1,16.21013245]
[1766716459258,5.77245949,124.16,124.11,8.05736846]
[1766716459672,5.77245949,124.14,124.08,10.43767296]
[1766716459881,5.77245949,124.14,124.09,13.83089129]
[1766716460058,28.1840016,124.19,124.09,13.83089129]
[1766716460376,28.1840016,124.19,124.08,10.43767296]
[1766716460580,5.77245949,124.13,124.08,18.49692276]
[1766716460780,28.1840016,124.19,124.09,8.0584714]
[1766716460968,0.68,124.18,124.1,8.05788589]
[1766716461281,0.68,124.13,124.09,13.83112658]
[1766716461484,0.68,124.13,124.09,33.97779432]
[1766716461866,0.68,124.19,124.12,0.71]
[1766716462190,0.68,124.15,124.12,10.43767296]
[1766716462661,0.68,124.14,124.12,10.43767296]
[1766716463359,5.77245949,124.17,124.13,8.05607024]
[1766716463766,5.77245949,124.16,124.12,8.05647574]
[1766716464387,5.77245949,124.16,124.11,31.29068163]
[1766716464388,33.9530764,124.2,124.11,9.13767296]
[1766716464685,33.9530764,124.2,124.03,20.15637095]
[1766716464686,10.43767296,124.15,124.03,20.15637095]
[1766716464881,33.20889343,124.19,124.03,20.15637095]
[1766716464882,10.43767296,124.16,124.06,0.71]
[1766716465185,14.68,124.15,124.07,0.71]
[1766716465384,10.43767296,124.18,124.08,6.48245949]
[1766716465577,8.05347507,124.17,124.09,0.71]
[1766716466102,5.77245949,124.14,124.09,5.77245949]
[1766716466308,8.05347507,124.17,124.07,8.05980893]
[1766716466309,5.77245949,124.16,124.1,6.48245949]
[1766716466505,5.77245949,124.15,124.1,6.48245949]
[1766716467387,22.73286164,124.18,124.1,14.53996761]
[1766716467388,8.05286164,124.18,124.1,14.53996761]
[1766716467587,5.77245949,124.15,124.1,14.53996761]
[1766716468401,5.77245949,124.15,124.1,8.76750812]
[1766716468612,5.77245949,124.15,124.1,14.53996761]
[1766716469113,5.77245949,124.14,124.08,20.14709586]
[1766716469316,25.13767296,124.19,124.07,10.43767296]
[1766716469317,5.77245949,124.12,124.07,10.43767296]
[1766716469610,5.77245949,124.09,124.04,8.06174012]
[1766716469812,5.77245949,124.06,124.01,0.2]
[1766716470043,5.77245949,124.06,124.03,8.06252511]
[1766716470508,5.77245949,124.07,124.03,0.71]
[1766716470889,5.77245949,124.08,124.04,0.71]
[1766716471095,5.77245949,124.08,124.03,0.71]
[1766716471292,5.77245949,124.07,124.03,0.71]
[1766716471489,5.77245949,124.11,124.01,10.63767296]
[1766716471490,5.77245949,124.04,124.01,0.2]
[1766716471693,5.77245949,124.11,124.01,0.2]
[1766716471694,5.77245949,124.02,124.01,0.2]
[1766716471919,9.40205291,124.02,124.01,0.2]
[1766716472300,9.40205291,124.01,124.0,0.2]
[1766716472503,9.40205291,124.01,123.95,0.71]
[1766716472701,9.40205291,123.98,123.95,8.77774125]
[1766716473017,9.40205291,124.01,123.97,0.71]
[1766716473415,9.40205291,124.0,123.97,0.71]
[1766716474016,8.06245254,124.04,123.95,0.71]
[1766716474017,9.40205291,123.98,123.95,0.71]
[1766716474421,9.40205291,123.97,123.95,0.71]
[1766716474716,8.06463354,124.0,123.93,8.97895559]
[1766716475033,9.40205291,123.98,123.94,8.77827031]
[1766716475220,9.40205291,123.98,123.94,0.71]
[1766716475618,8.06404968,124.01,123.94,0.71]
[1766716475817,8.06404968,124.01,123.94,8.77794552]
[1766716476120,8.06404968,124.01,123.94,0.71]
[1766716476312,28.22371422,124.01,123.94,0.71]
[1766716476619,9.40205291,123.98,123.94,8.77837177]
[1766716477128,9.40205291,123.97,123.94,0.71]
[1766716477334,8.06386581,124.01,123.94,8.77829456]
[1766716477557,9.40205291,123.99,123.95,0.71]
[1766716477834,10.43767296,124.05,123.95,0.71]
[1766716478000,9.40205291,124.01,123.97,0.71]
[1766716478509,9.40205291,124.0,123.95,0.71]
[1766716478820,9.40205291,124.0,123.96,0.71]
[1766716479025,9.40205291,123.98,123.96,0.71]
[1766716479219,9.40205291,123.98,123.94,0.71]
[1766716479826,9.40205291,124.02,123.94,0.71]
[1766716480003,9.40205291,123.97,123.94,0.71]
[1766716480917,9.40205291,123.97,123.94,8.77837068]
[1766716481220,9.40205291,123.97,123.94,0.71]
[1766716481422,29.5609064,124.02,123.93,8.2688697]
[1766716481423,9.40205291,123.95,123.93,0.2]
[1766716481740,9.40205291,123.94,123.93,0.2]
[1766716482128,14.7,123.98,123.93,0.2]
[1766716482317,9.40205291,123.94,123.9,0.2]
[1766716482511,9.40205291,123.93,123.9,0.2]
[1766716482715,9.40205291,123.93,123.9,0.9]
[1766716483240,9.40205291,123.92,123.9,0.2]
[1766716483615,28.23539808,123.96,123.86,4.20828839]
[1766716483616,9.40205291,123.91,123.86,4.20828839]
[1766716483936,9.40205291,123.93,123.86,4.20828839]